bitfinex-derivatives/quotes_SOLF0:USTF0_20220109
["timestamp","ask_amount","ask_price","bid_price","bid_amount"]
[1641693176499,12.838,142.01,141.93,10.44910045]
[1641693176899,27.66479,141.97,141.93,10.44910045]
[1641693177300,8.838,142.01,141.93,10.44910045]
[1641693177501,8.838,142.01,141.91,11.04423781]
[1641693177700,5.76,142.06,141.91,11.04423781]
[1641693177701,4.0,142.05,141.91,11.04423781]
[1641693177902,4.0,142.05,141.91,7.04423781]
[1641693178102,1.76,142.06,141.91,7.04423781]
[1641693178401,12.80423781,142.07,141.91,11.04423781]
[1641693178700,132.4653,142.11,141.95,4.0]
[1641693178701,5.76,142.08,141.95,4.0]
[1641693178901,27.66479,142.05,141.95,7.384]
[1641693179902,31.66479,142.05,141.95,7.384]
[1641693180105,31.66479,142.05,141.94,7.04274949]
[1641693180503,27.66479,142.05,141.94,7.04274949]
[1641693180902,27.66479,142.0,141.91,34.70877972]
[1641693183806,27.66479,142.05,141.91,34.70877972]
[1641693184006,27.66479,142.05,141.91,40.62577972]
[1641693184206,31.66479,142.05,141.91,40.62577972]
[1641693184709,4.0,142.04,141.91,40.62577972]
[1641693184906,27.66479,142.01,141.91,40.62577972]
[1641693185707,4.0,142.0,141.91,40.62577972]
[1641693185907,4.0,141.96,141.88,34.71026856]
[1641693186107,6.208,141.96,141.88,34.71026856]
[1641693186408,6.208,141.96,141.88,7.04547856]
[1641693186906,27.66479,141.95,141.88,7.04547856]
[1641693188110,140.0381,142.0,141.88,7.04547856]
[1641693188311,140.0381,142.0,141.9,7.04473406]
[1641693188512,133.5761,142.0,141.9,7.04473406]
[1641693188911,133.5761,142.0,141.9,27.66479]
[1641693189113,137.5761,142.0,141.9,27.66479]
[1641693190015,4.0,141.99,141.88,14.46747856]
[1641693190216,137.5761,142.0,141.88,14.46747856]
[1641693190415,1.761,141.99,141.88,14.46747856]
[1641693190619,133.5761,142.0,141.88,14.46747856]
[1641693190816,27.66479,141.97,141.9,27.66479]
[1641693193216,27.66479,142.01,141.9,27.66479]
[1641693193416,27.66479,142.01,141.92,7.04374164]
[1641693193615,27.66479,142.01,141.92,13.66174164]
[1641693193815,27.66479,142.01,141.92,6.618]
[1641693194018,31.66479,142.01,141.92,6.618]
[1641693194218,1.76,142.0,141.92,6.618]
[1641693195219,59.32958,142.01,141.92,6.618]
[1641693196118,59.32958,142.01,141.89,70.85868221]
[1641693196418,4.0,141.99,141.89,70.85868221]
[1641693196819,27.66479,141.96,141.89,70.85868221]
[1641693197019,27.66479,141.96,141.89,7.04498221]
[1641693197221,34.24779,141.96,141.89,7.04498221]
[1641693197420,38.24779,141.96,141.89,7.04498221]
[1641693199323,34.24779,141.96,141.89,7.04498221]
[1641693199523,27.66479,141.96,141.89,7.04498221]
[1641693200826,5.76,141.98,141.89,7.04498221]
[1641693200827,1.76,141.98,141.89,7.04498221]
[1641693201029,27.66479,142.02,141.92,7.04374164]
[1641693201227,27.66479,142.02,141.92,12.68974164]
[1641693201429,133.0208,142.04,141.92,12.68974164]
[1641693202526,68.9108,142.04,141.92,38.58746226]
[1641693202929,96.57559,142.04,141.94,27.66479]
[1641693204529,6.0,141.98,141.94,27.66479]
[1641693205330,6.0,141.98,141.93,25.89772062]
[1641693205929,6.0,141.98,141.93,10.41843486]
[1641693206132,6.0,141.98,141.92,10.41843486]
[1641693206531,6.0,141.98,141.92,17.4621765]
[1641693206931,6.0,141.98,141.92,7.04374164]
[1641693207831,6.0,141.98,141.92,17.4621765]
[1641693209232,0.0001,141.98,141.94,7.0425015]
[1641693209434,66.701,142.07,141.97,7.04126179]
[1641693209631,14.89059064,142.08,141.97,15.73726179]
[1641693209832,14.89059064,142.08,141.97,19.73726179]
[1641693210031,14.89059064,142.08,141.98,1.76]
[1641693210235,14.89059064,142.08,141.97,25.37219305]
[1641693210435,14.89059064,142.12,141.98,1.76]
[1641693210632,14.89059064,142.12,142.01,7.03903143]
[1641693210833,14.89059064,142.12,142.01,14.82703143]
[1641693211034,42.55538064,142.12,142.03,27.66479]
[1641693211434,27.66479,142.12,142.03,27.66479]
[1641693212636,27.66479,142.14,142.04,7.0375453]
[1641693212837,27.66479,142.14,142.04,14.8355453]
[1641693213036,27.66479,142.14,142.04,17.52505921]
[1641693213636,27.66479,142.14,142.05,2.68951391]
[1641693214739,139.2218,142.17,142.05,2.68951391]
[1641693214941,95.47799,142.18,142.09,7.03531729]
[1641693215144,27.66479,142.18,142.09,14.84231729]
[1641693215343,27.66479,142.18,142.09,42.50710729]
[1641693216243,27.66479,142.2,142.12,7.03383274]
[1641693216443,14.89059064,142.22,142.12,13.89583274]
[1641693216642,67.2948,142.23,142.12,13.89583274]
[1641693216841,67.2948,142.23,142.12,15.65383274]
[1641693217241,27.66479,142.22,142.13,27.66479]
[1641693218443,27.66479,142.22,142.13,31.66479]
[1641693218642,67.2948,142.23,142.13,31.66479]
[1641693218944,14.89059064,142.28,142.18,7.03061834]
[1641693219143,14.89059064,142.28,142.18,13.74761834]
[1641693219343,14.89059064,142.29,142.22,27.66479]
[1641693219543,14.89059064,142.29,142.22,33.37779]
[1641693220645,27.66479,142.3,142.22,33.37779]
[1641693221045,31.66479,142.3,142.22,5.713]
[1641693221249,27.66479,142.24,142.18,7.0308655]
[1641693221646,34.92079,142.24,142.18,7.0308655]
[1641693221848,34.92079,142.24,142.16,64.4153]
[1641693222047,34.92079,142.24,142.15,7.0323488]
[1641693223150,4.0,142.23,142.14,27.66479]
[1641693223348,27.66479,142.17,142.11,7.03408012]
[1641693223550,33.43379,142.17,142.11,7.03408012]
[1641693223952,5.769,142.17,142.12,7.03383274]
[1641693224352,5.769,142.17,142.11,4.0]
[1641693224552,134.5853,142.28,142.12,4.0]
[1641693224753,134.5853,142.28,142.16,7.03160707]
[1641693224754,4.0,142.27,142.16,7.03160707]
[1641693224952,6.0,142.17,142.16,14.47460707]
[1641693225152,6.0,142.17,142.16,7.443]
[1641693226353,6.0,142.17,142.13,27.66479]
[1641693226654,6.0,142.17,142.1,7.03457494]
[1641693226853,6.0,142.17,142.12,7.03358537]
[1641693228553,6.0,142.17,142.12,11.03358537]
[1641693229354,6.0,142.17,142.14,27.66479]
[1641693230459,6.0,142.17,142.12,7.03358537]
[1641693230658,12.455,142.17,142.12,7.03358537]
[1641693231258,12.455,142.17,142.12,12.66252247]
[1641693231457,12.455,142.17,142.12,16.66252247]
[1641693231858,27.66479,142.21,142.13,5.758]
[1641693232057,134.5853,142.28,142.18,7.0308655]
[1641693232258,14.89059064,142.3,142.2,7.02987698]
[1641693232557,14.89059064,142.32,142.2,12.65570316]
[1641693232757,14.89059064,142.32,142.24,7.02790077]
[1641693232956,14.89059064,142.32,142.24,6.872]
[1641693233358,95.94219,142.34,142.24,34.53679]
[1641693235458,27.66479,142.34,142.26,11.02691308]
[1641693235660,27.66479,142.37,142.27,4.0]
[1641693235860,70.1493,142.38,142.28,7.02567886]
[1641693236262,70.1493,142.38,142.28,11.02567886]
[1641693237061,70.1493,142.38,142.28,7.02567886]
[1641693237262,4.0,142.37,142.28,7.02567886]
[1641693237462,27.66479,142.36,142.28,7.02567886]
[1641693239064,4.0,142.35,142.25,8.78315997]
[1641693239264,4.0,142.31,142.21,1.756]
[1641693239465,27.66479,142.27,142.2,27.66479]
[1641693239666,36.34079,142.27,142.21,7.02938282]
[1641693240868,8.676,142.27,142.21,7.02938282]
[1641693241067,27.66479,142.29,142.21,7.02938282]
[1641693241268,4.0,142.35,142.21,7.02938282]
[1641693241469,27.66479,142.3,142.21,7.02938282]
[1641693241869,27.66479,142.32,142.24,7.02790077]
[1641693242070,27.66479,142.32,142.24,14.53390077]
[1641693242871,27.66479,142.32,142.24,7.506]
[1641693243071,27.66479,142.32,142.22,7.02888873]
[1641693243872,14.89059064,142.35,142.23,4.0]
[1641693244070,14.89059064,142.35,142.23,10.986]
[1641693244470,2.27143206,142.35,142.23,10.986]
[1641693245473,2.27143206,142.35,142.26,27.66479]
[1641693245675,2.27143206,142.35,142.3,4.0]
[1641693245972,2.27143206,142.35,142.31,20.0]
[1641693246173,14.89059064,142.37,142.32,11.023705]
[1641693246373,14.89059064,142.42,142.32,11.023705]
[1641693246574,14.89059064,142.42,142.32,7.023705]
[1641693247476,27.66479,142.38,142.32,7.023705]
[1641693247675,37.63579,142.38,142.3,27.66479]
[1641693247974,33.63579,142.38,142.27,7.02641934]
[1641693248975,33.63579,142.38,142.31,7.02444507]
[1641693252280,27.66479,142.38,142.31,7.02444507]
[1641693252681,4.0,142.36,142.28,7.02592567]
[1641693252880,4.0,142.36,142.23,69.7607]
[1641693253082,7.02938282,142.37,142.21,7.02938282]
[1641693253280,68.3417,142.36,142.21,7.02938282]
[1641693253481,4.0,142.3,142.19,7.0303712]
[1641693253684,27.66479,142.28,142.19,7.0303712]
[1641693255582,27.66479,142.28,142.21,27.66479]
[1641693255782,27.66479,142.28,142.23,7.02814773]
[1641693256681,18.89059064,142.35,142.23,7.02814773]
[1641693256882,14.89059064,142.35,142.23,7.02814773]
[1641693257081,68.3417,142.36,142.25,7.02740689]
[1641693257282,68.3417,142.36,142.25,13.31040689]
[1641693257581,27.66479,142.33,142.25,6.283]
[1641693257782,31.66479,142.33,142.25,6.283]
[1641693258382,31.66479,142.33,142.24,27.66479]
[1641693258983,27.66479,142.33,142.24,27.66479]
[1641693260985,4.0,142.31,142.22,7.02864171]
[1641693261187,4.0,142.29,142.22,7.02864171]
[1641693261485,4.0,142.24,142.17,1.756]
[1641693261685,4.0,142.24,142.15,7.0323488]
[1641693261686,27.66479,142.21,142.15,7.0323488]
[1641693261885,36.52679,142.21,142.15,7.0323488]
[1641693262284,36.52679,142.21,142.16,2.68434354]
[1641693262885,40.52679,142.21,142.16,2.68434354]
[1641693263087,36.52679,142.21,142.13,10.46755592]
[1641693263289,4.0,142.18,142.13,10.46755592]
[1641693264990,4.0,142.18,142.08,17.5033682]
[1641693265793,31.66479,142.18,142.08,17.5033682]
[1641693266690,31.66479,142.18,142.08,7.03581228]
[1641693267891,27.66479,142.18,142.09,4.0]
[1641693268094,66.8386,142.24,142.12,7.03358537]
[1641693268291,95.18549064,142.27,142.14,7.03284338]
[1641693268692,84.90549064,142.27,142.14,7.03284338]
[1641693268892,4.0,142.25,142.14,7.03284338]
[1641693269693,27.66479,142.24,142.15,27.66479]
[1641693269894,27.66479,142.24,142.15,33.06279]
[1641693270597,27.66479,142.24,142.16,7.0318543]
[1641693270798,66.0149,142.27,142.16,7.0318543]
[1641693271799,66.0149,142.27,142.18,27.66479]
[1641693271997,97.06659,142.28,142.18,34.40679]
[1641693272598,101.06659,142.28,142.18,34.40679]
[1641693273200,4.0,142.23,142.18,6.742]
[1641693273398,4.0,142.2,142.15,27.66479]
[1641693273598,4.0,142.19,142.1,7.03482237]
[1641693273799,4.0,142.18,142.1,7.03482237]
[1641693273999,4.0,142.18,142.08,27.66479]
[1641693275000,4.0,142.17,142.08,27.66479]
[1641693275201,4.0,142.16,142.08,27.66479]
[1641693275602,10.433,142.17,142.08,27.66479]
[1641693275803,34.09779,142.17,142.08,27.66479]
[1641693276204,38.09779,142.17,142.08,27.66479]
[1641693276404,38.09779,142.17,142.06,7.0365549]
[1641693276604,4.0,142.16,142.06,7.0365549]
[1641693277603,38.09779,142.17,142.06,7.0365549]
[1641693277903,65.76258,142.17,142.06,7.0365549]
[1641693278904,4.0,142.16,142.06,7.0365549]
[1641693279908,27.66479,142.14,142.06,7.0365549]
[1641693280108,35.66379,142.14,142.06,7.0365549]
[1641693284011,4.0,142.11,142.05,10.43472194]
[1641693284213,4.0,142.08,142.05,10.43472194]
[1641693284412,11.823,142.08,142.05,10.43472194]
[1641693284611,11.823,142.08,141.99,7.04027035]
[1641693284813,4.0,142.07,141.97,7.04126179]
[1641693285013,4.0,142.06,141.97,7.04126179]
[1641693285212,4.0,142.05,141.97,7.04126179]
[1641693285413,10.854,142.05,141.97,7.04126179]
[1641693286015,27.66479,142.04,141.97,7.04126179]
[1641693286214,27.66479,142.04,141.95,10.4336543]
[1641693286513,31.66479,142.04,141.95,10.4336543]
[1641693286716,4.0,142.03,141.95,10.4336543]
[1641693286915,4.0,142.01,141.95,10.4336543]
[1641693287115,4.0,141.98,141.95,10.4336543]
[1641693287317,10.776,141.98,141.95,10.4336543]
[1641693287516,6.776,141.98,141.95,10.4336543]
[1641693287916,38.44079,141.98,141.95,10.4336543]
[1641693288319,34.44079,141.98,141.88,130.47347892]
[1641693288520,38.44079,141.98,141.88,4.0]
[1641693289118,34.44079,141.98,141.88,4.0]
[1641693289318,6.776,141.98,141.92,11.04349357]
[1641693289518,27.66479,142.04,141.97,7.04101391]
[1641693289720,27.66479,142.04,141.97,13.48301391]
[1641693290619,27.66479,142.04,141.97,6.442]
[1641693290918,27.66479,142.04,141.96,27.66479]
[1641693291121,35.67179,142.04,141.94,7.04274949]
[1641693291321,4.0,142.0,141.94,7.04274949]
[1641693291519,5.838,142.0,141.91,63.9896]
[1641693291718,5.838,142.0,141.88,11.04572677]
[1641693291918,9.838,142.0,141.88,11.04572677]
[1641693292118,9.838,142.0,141.9,27.66479]
[1641693292317,5.838,142.0,141.9,27.66479]
[1641693293219,31.66479,142.01,141.9,27.66479]
[1641693295423,27.66479,142.01,141.9,27.66479]
[1641693295624,1.761,142.03,141.99,7.04027035]
[1641693295824,6.0,142.04,141.99,13.40127035]
[1641693296023,6.0,142.04,141.99,6.361]
[1641693297222,6.0,142.04,141.97,7.04101391]
[1641693299136,10.0,142.04,141.97,7.04101391]
[1641693299335,10.0,142.04,141.94,28.16405562]
[1641693299336,4.0,142.02,141.94,7.04274949]
[1641693299537,4.0,142.01,141.91,7.04423781]
[1641693299736,11.845,142.01,141.9,27.66479]
[1641693299935,7.845,142.01,141.9,27.66479]
[1641693300135,27.66479,141.96,141.9,27.66479]
[1641693300336,33.82379,141.96,141.9,27.66479]
[1641693300535,6.159,141.96,141.92,4.0]
[1641693300736,6.0,142.04,141.92,7.04374164]
[1641693300935,6.0,142.04,141.93,9.63646135]
[1641693301436,6.0,142.04,141.93,5.63646135]
[1641693301636,4.0,142.03,141.92,8.80374164]
[1641693301935,4.0,142.02,141.92,7.04374164]
[1641693302436,27.66479,142.0,141.92,7.04374164]
[1641693302637,4.0,141.99,141.91,10.40050102]
[1641693302835,27.66479,142.02,141.9,34.70952406]
[1641693303035,6.0,142.04,141.93,7.04324553]
[1641693303334,6.0,142.04,141.95,7.04225352]
[1641693303735,4.0,142.01,141.94,2.67250052]
[1641693303940,4.0,141.99,141.94,2.67250052]
[1641693304336,27.66479,141.98,141.94,2.67250052]
[1641693304536,36.30179,141.98,141.94,2.67250052]
[1641693304738,36.30179,141.98,141.91,2.67250052]
[1641693305638,63.5651,142.03,141.92,4.0]
[1641693305836,6.0,142.04,141.97,7.04126179]
[1641693306037,6.0,142.04,141.97,13.00926179]
[1641693306237,27.66479,142.02,141.97,13.00926179]
[1641693306440,6.0,142.04,141.97,13.00926179]
[1641693306839,4.0,142.03,141.97,5.968]
[1641693307040,8.164,142.03,141.93,2.67250052]
[1641693307239,4.0,142.02,141.9,27.66479]
[1641693307440,4.0,142.01,141.9,27.66479]
[1641693307641,4.0,142.0,141.9,27.66479]
[1641693307843,12.864,142.0,141.9,27.66479]
[1641693308042,4.0,141.99,141.91,2.675875]
[1641693308242,27.66479,141.98,141.91,2.675875]
[1641693314849,31.66479,141.98,141.91,2.675875]
[1641693315452,27.66479,141.98,141.91,2.675875]
[1641693315749,4.0,141.96,141.91,2.675875]
[1641693315949,6.992,141.96,141.91,2.675875]
[1641693316150,4.0,141.92,141.89,10.4441948]
[1641693316350,11.206,141.92,141.83,59.50747892]
[1641693316551,27.66479,141.88,141.83,59.50747892]
[1641693316749,33.64979,141.88,141.83,59.50747892]
[1641693316949,33.64979,141.88,141.81,28.19085207]
[1641693320557,4.0,141.85,141.8,15.55158582]
[1641693320754,10.39,141.85,141.8,15.55158582]
[1641693321654,6.39,141.85,141.8,15.55158582]
[1641693321855,6.39,141.85,141.77,64.0953]
[1641693322054,33.64979,141.88,141.76,31.66479]
[1641693322253,27.66479,141.88,141.76,27.66479]
[1641693322454,27.66479,141.77,141.75,5.64342854]
[1641693322855,27.66479,141.77,141.71,59.50747892]
[1641693323255,27.66479,141.77,141.69,27.66479]
[1641693323455,27.66479,141.79,141.71,7.05417607]
[1641693324457,55.32958,141.79,141.71,7.05417607]
[1641693324658,4.0,141.75,141.71,7.05417607]
[1641693324956,5.543,141.76,141.71,7.05417607]
[1641693326158,59.32958,141.79,141.71,7.05417607]
[1641693326359,55.32958,141.79,141.69,27.66479]
[1641693327159,59.32958,141.79,141.69,27.66479]
[1641693327361,55.32958,141.79,141.69,27.66479]
[1641693329060,55.32958,141.79,141.72,4.0]
[1641693329263,1.762,141.84,141.77,4.0]
[1641693329562,6.0,141.85,141.78,7.05044594]
[1641693330063,6.0,141.85,141.78,11.05044594]
[1641693330361,6.0,141.85,141.82,7.04870656]
[1641693330561,33.66479,141.85,141.82,8.803]
[1641693331462,6.0,141.85,141.82,8.803]
[1641693331661,64.8081,141.92,141.82,15.85145815]
[1641693332463,4.0,141.9,141.82,15.85145815]
[1641693332661,31.66479,141.9,141.82,15.85145815]
[1641693332863,4.0,141.89,141.82,7.04845815]
[1641693333063,31.66479,141.9,141.82,7.04845815]
[1641693333564,4.0,141.89,141.82,7.04845815]
[1641693333764,29.42679,141.9,141.77,27.66479]
[1641693333964,4.0,141.85,141.77,7.05119165]
[1641693334164,9.938,141.85,141.77,7.05119165]
[1641693334366,4.0,141.84,141.77,7.05119165]
[1641693334565,55.32958,141.78,141.76,89.0]
[1641693334767,62.04158,141.78,141.7,59.50747892]
[1641693334963,62.04158,141.78,141.68,34.72045923]
[1641693335764,34.37679,141.78,141.7,27.05467372]
[1641693335963,1.762,141.84,141.74,11.05268355]
[1641693336164,1.762,141.87,141.74,14.11368355]
[1641693336463,27.66479,141.84,141.74,41.77847355]
[1641693337066,6.0,141.78,141.74,7.061]
[1641693337265,13.838,141.78,141.71,7.05392727]
[1641693337565,13.838,141.78,141.69,7.05517144]
[1641693338365,13.838,141.78,141.69,17.47958754]
[1641693338564,27.66479,141.77,141.69,17.47958754]
[1641693338966,27.66479,141.77,141.72,7.05367849]
[1641693339368,6.0,141.78,141.72,7.05367849]
[1641693339569,6.0,141.78,141.72,12.71167849]
[1641693340066,3.8195,141.78,141.76,7.05168888]
[1641693340267,3.8195,141.78,141.76,5.706]
[1641693341269,3.8195,141.78,141.74,7.05243485]
[1641693341670,0.0001,141.78,141.74,7.05243485]
[1641693341870,27.66479,141.85,141.77,7.05094306]
[1641693342073,4.0,141.93,141.77,15.51494306]
[1641693342271,4.0,141.94,141.77,15.51494306]
[1641693342471,4.0,141.93,141.77,15.51494306]
[1641693342671,27.66479,141.89,141.78,27.66479]
[1641693343273,4.0,141.87,141.78,27.66479]
[1641693343473,27.66479,141.89,141.78,27.66479]
[1641693344173,31.66479,141.89,141.78,27.66479]
[1641693344373,4.0,141.86,141.78,10.4244161]
[1641693344574,27.66479,141.81,141.78,10.4244161]
[1641693344773,34.70579,141.81,141.78,10.4244161]
[1641693345375,34.70579,141.81,141.73,10.4244161]
[1641693346579,27.66479,141.78,141.73,10.4244161]
[1641693347482,15.64851309,141.78,141.73,10.4244161]
[1641693347679,34.70579,141.81,141.73,10.4244161]
[1641693347881,27.66479,141.81,141.73,10.4244161]
[1641693350584,27.66479,141.81,141.72,7.05342973]
[1641693353691,27.66479,141.81,141.73,4.0]
[1641693353892,27.66479,141.81,141.73,12.254]
[1641693354093,1.762,141.85,141.76,7.05168888]
[1641693354293,63.6089,141.86,141.76,13.44968888]
[1641693354693,27.66479,141.84,141.78,4.0]
[1641693354894,27.66479,141.86,141.79,7.04994889]
[1641693355092,69.8683,141.92,141.79,15.84594889]
[1641693355291,69.8683,141.92,141.82,7.04845815]
[1641693355491,69.8683,141.92,141.82,13.59545815]
[1641693356594,27.66479,141.89,141.83,2.68935703]
[1641693357595,4.0,141.87,141.83,2.68935703]
[1641693357994,4.0,141.86,141.82,9.47377313]
[1641693358394,4.0,141.86,141.76,66.5591678]
[1641693358594,4.0,141.86,141.76,7.05168888]
[1641693358797,27.66479,141.81,141.76,7.05168888]
[1641693362800,27.66479,141.83,141.77,4.0]
[1641693363000,33.66479,141.86,141.8,7.04970039]
[1641693363200,33.66479,141.86,141.8,15.48270039]
[1641693366004,33.66479,141.86,141.8,31.0156932]
[1641693368708,33.66479,141.86,141.8,35.0156932]
[1641693369007,129.2224,141.94,141.84,7.04771302]
[1641693369207,14.89059064,141.97,141.84,13.65271302]
[1641693369408,14.89059064,141.97,141.88,7.04547856]
[1641693369608,14.89059064,141.97,141.88,13.10947856]
[1641693370211,68.4157,141.99,141.88,13.10947856]
[1641693370411,68.4157,141.99,141.85,8.80696804]
[1641693370412,4.0,141.94,141.85,8.80696804]
[1641693370610,5.715,141.94,141.85,7.04696804]
[1641693370809,27.66479,141.89,141.85,7.04696804]
[1641693372011,35.23179,141.89,141.85,7.04696804]
[1641693372211,35.23179,141.89,141.8,89.0]
[1641693372612,35.23179,141.89,141.79,34.71498741]
[1641693372811,27.66479,141.86,141.79,34.71498741]
[1641693373614,27.66479,141.86,141.79,7.05019741]
[1641693373615,34.94379,141.86,141.79,7.05019741]
[1641693374114,4.0,141.83,141.78,15.51742359]
[1641693374313,4.0,141.81,141.74,59.50747892]
[1641693374514,4.0,141.81,141.73,59.50747892]
[1641693374713,9.729,141.83,141.73,59.50747892]
[1641693374915,27.66479,141.79,141.73,70.5606599]
[1641693375118,33.66479,141.86,141.76,7.05168888]
[1641693375415,33.66479,141.86,141.76,12.78668888]
[1641693375917,33.66479,141.86,141.76,16.78668888]
[1641693376116,33.66479,141.86,141.77,4.0]
[1641693377020,37.66479,141.86,141.76,12.78668888]
[1641693377221,4.0,141.85,141.76,12.78668888]
[1641693377423,37.66479,141.86,141.76,12.78668888]
[1641693378020,4.0,141.84,141.76,12.78668888]
[1641693378824,4.0,141.85,141.76,12.78668888]
[1641693379021,27.66479,141.82,141.76,12.78668888]
[1641693380023,27.66479,141.82,141.76,7.05168888]
[1641693380625,33.66479,141.86,141.76,7.05168888]
[1641693380824,33.66479,141.86,141.76,13.09668888]
[1641693381023,33.66479,141.86,141.77,27.66479]
[1641693381524,33.66479,141.86,141.76,13.09668888]
[1641693381725,33.66479,141.86,141.77,10.48509694]
[1641693382025,33.66479,141.86,141.77,26.01025484]
[1641693382628,33.66479,141.86,141.76,7.05168888]
[1641693386232,33.66479,141.86,141.76,17.53678582]
[1641693388132,4.0,141.84,141.76,17.53678582]
[1641693388336,4.0,141.85,141.76,17.53678582]
[1641693388534,45.36279,141.86,141.76,33.06194372]
[1641693388733,4.0,141.85,141.76,33.06194372]
[1641693389434,27.66479,141.82,141.76,33.06194372]
[1641693389634,27.66479,141.82,141.76,7.05168888]
[1641693389834,33.66479,141.86,141.76,7.05168888]
[1641693390035,33.66479,141.86,141.76,13.84068888]
[1641693391234,33.66479,141.86,141.77,27.66479]
[1641693392035,33.66479,141.86,141.77,53.67504484]
[1641693394240,6.0,141.86,141.82,4.0]
[1641693394440,6.0,141.86,141.82,6.264]
[1641693394639,0.0001,141.86,141.84,4.0]
[1641693395239,0.0001,141.86,141.82,20.74909694]
[1641693395439,27.66479,141.93,141.85,27.66479]
[1641693395640,27.66479,141.93,141.85,36.08579]
[1641693396343,95.04099,141.95,141.85,36.08579]
[1641693397342,95.04099,141.95,141.86,10.48509694]
[1641693398344,95.04099,141.95,141.86,13.17361063]
[1641693398745,27.66479,141.95,141.89,7.04523038]
[1641693398947,14.89059064,142.0,141.92,7.04349357]
[1641693399146,14.89059064,142.0,141.92,13.19249357]
[1641693399347,39.35548184,142.03,141.98,27.66479]
[1641693399545,39.35548184,142.03,141.99,7.03977473]
[1641693399745,8.184e-05,142.03,141.99,7.03977473]
[1641693399946,98.89462993,142.11,142.02,7.03828829]
[1641693400146,14.92456935,142.06,142.05,4.0]
[1641693400346,14.92456935,142.06,142.05,18.31111267]
[1641693400546,4.0,142.23,142.05,40.06911267]
[1641693400748,120.07012018,142.22,142.21,7.02888873]
[1641693400947,115.37012018,142.22,142.21,13.10988873]
[1641693401146,66.35012018,142.22,142.21,13.10988873]
[1641693401448,3.35012018,142.22,142.21,13.10988873]
[1641693401646,148.2638283,142.28,142.21,13.10988873]
[1641693401848,148.2638283,142.28,142.27,7.02592567]
[1641693402047,148.2638283,142.28,142.27,15.75592567]
[1641693402348,148.2638283,142.28,142.27,8.73]
[1641693402747,148.2638283,142.28,142.27,15.75543206]
[1641693403349,148.2638283,142.28,142.27,71.08501206]
[1641693403550,148.2638283,142.28,142.27,75.08501206]
[1641693403951,0.4583283,142.28,142.27,95.08501206]
[1641693404150,0.4583283,142.28,142.27,96.84101206]
[1641693404550,148.2638283,142.33,142.27,96.84101206]
[1641693404751,148.2638283,142.33,142.32,4.0]
[1641693404952,148.2638283,142.33,142.32,21.03428263]
[1641693405353,54.7228283,142.33,142.32,76.36386263]
[1641693405554,38.89119463,142.36,142.32,76.36386263]
[1641693405752,33.27173044,142.36,142.35,24.0]
[1641693406657,33.27173044,142.36,142.32,82.34786263]
[1641693406854,33.27173044,142.36,142.32,62.34786263]
[1641693407052,33.27173044,142.36,142.32,34.68307263]
[1641693407261,4.0,142.41,142.32,34.68307263]
[1641693407456,27.66479,142.4,142.32,34.68307263]
[1641693407854,27.66479,142.42,142.32,34.68307263]
[1641693408255,31.66479,142.42,142.32,34.68307263]
[1641693408456,27.66479,142.42,142.32,34.68307263]
[1641693408656,4.0,142.52,142.33,4.0]
[1641693408958,1.754,142.51,142.35,4.0]
[1641693409158,5.754,142.52,142.36,1.754]
[1641693409357,27.66479,142.49,142.42,27.66479]
[1641693409558,4.0,142.43,142.32,7.01828263]
[1641693409759,1.754,142.48,142.32,7.01828263]
[1641693409760,5.754,142.42,142.32,7.01828263]
[1641693409958,13.555,142.42,142.32,7.01828263]
[1641693410160,9.555,142.42,142.32,7.01828263]
[1641693410364,1.754,142.46,142.33,4.0]
[1641693410564,4.0,142.47,142.34,1.754]
[1641693410760,4.0,142.47,142.37,7.02123925]
[1641693410960,1.754,142.46,142.37,7.02123925]